{"text_format":"1","workbook":"xlsx","n_sheets":4,"sheets":["Instructions","Pre-Application Form","Application (Forms 1 and 2)","Customized Measures (Form 3)"],"not_rendered":{"charts":0,"images":6,"macros":1,"external_links":0,"defined_names":5,"comments":0,"pivot_tables":0},"unopened":[],"bounds":{"document_bytes":16777216,"sheet_cells":100000,"rows_first":2000,"rows_last":500,"rows_between":2000,"halvings":0,"cell_chars":16384,"cell_head_chars":4096},"cells_cut":0,"cells_raw":0,"read":"whole","date_system":"1900"}

{"sheet":"Instructions","index":0,"n_rows":32,"n_cols":34,"rows_kept":32,"cut":false,"hidden":false,"merged":[[19,2,21,8],[24,11,24,12],[10,2,10,5]]}
[]
[]
[null,null,null,null,"2018 Energy Efficiency Business Incentive Application"]
[]
[]
[]
[]
[]
[null,"Submit your completed application to: "]
[]
[null,null,"BusinessEnergySavings@sdge.com"]
[null,null,"    OR"]
[null,null,"San Diego Gas & Electric® "]
[null,null,"8335 Century Park Court, CP12C"]
[null,null,"San Diego, CA 92123-1569"]
[]
[]
[null,"Project Application"]
[]
[null,null,"Please complete all information in the Pre-Application Form, next sign and submit as soon as possible.  \nThen continue with the completion of Forms 1 and 2 & Form 3 as the project lifecycle progresses.  Both the customer and sponsor must sign the Pre-Application Form and the completed Application. The project sponsor is the primary contact acting as the responsible party for the application. A customer may choose to \"self-sponsor\" or have a third party serve as project sponsor."]
[]
[]
[]
[]
[]
[]
[]
[]
[]
[]
[]
[null,null,null,null,null,null,null,null,null,null,null,null,null,null,null,null,null,null,null,null,null,null,null,null,null,null,null,null,null,null,null,null,null,2]

{"sheet":"Pre-Application Form","index":1,"n_rows":73,"n_cols":46,"rows_kept":73,"cut":false,"hidden":false,"merged":[[60,0,60,26],[62,37,62,52],[55,0,56,52],[72,0,74,52],[65,0,65,26],[66,0,66,52],[67,0,67,52],[68,0,68,52],[69,0,69,52],[64,0,64,26],[64,31,64,40],[44,0,44,52],[61,0,61,52],[62,0,62,21],[62,22,62,36],[45,2,45,52],[46,2,46,52],[47,2,47,52],[48,2,48,52],[49,2,49,52],[51,0,53,52],[50,0,50,52],[57,0,57,21],[57,22,57,36],[57,37,57,52],[59,0,59,26],[59,31,59,40],[36,0,36,33],[36,35,36,51],[38,0,38,16],[38,18,38,33],[41,0,41,52],[29,0,29,19],[29,45,29,52],[31,0,31,52],[32,0,32,52],[34,0,34,25],[34,27,34,39],[34,41,34,43],[34,45,34,52],[25,0,25,25],[25,27,25,39],[25,41,25,52],[27,0,27,10],[27,12,27,22],[27,24,27,32],[27,34,27,42],[27,44,27,52],[20,0,20,52],[21,0,21,52],[23,0,23,25],[23,27,23,39],[23,41,23,43],[23,45,23,52],[16,3,16,9],[16,10,16,26],[16,31,16,35],[16,43,16,51],[19,0,19,54],[13,0,13,16],[13,18,13,34],[13,36,13,52],[15,3,15,9],[15,10,15,26],[15,31,15,35],[15,39,15,43],[11,0,11,25],[11,27,11,52],[12,0,12,16],[12,18,12,34],[12,36,12,52],[9,0,9,25],[9,27,9,39],[9,41,9,43],[10,0,10,25],[10,27,10,52],[5,0,5,52],[6,0,6,34],[7,0,7,52],[8,0,8,25],[8,27,8,39],[8,41,8,43],[8,45,8,52],[0,0,0,52],[1,0,1,52],[2,0,2,52],[3,0,3,52],[4,0,4,52]]}
["2018 Pre-Application Information Form"]
["Completed Pre-Application Information Forms should be submitted to the customer's \nassigned Account Executive, with a copy also sent to BusinessEnergySavings@sdge.com. If you are unsure who your Account Executive is, please contact the Business Call Center at 1-800-336-7343. "]
["PRIVACY NOTICE"]
["SDG&E® may be required to provide your information to the California Public Utilities Commission (CPUC) upon request.  If the CPUC requests review of your project, SDG&E will provide the CPUC with all information requested without further notification to you.  Upon submittal to the CPUC, SDG&E marks sensitive customer information as confidential and requests that this information be kept confidential.  If you do not want SDG&E to share your information with the CPUC, you must notify us within three (3) business days of the notice, and in such event, you will be prohibited from participating in the program."]
["CUSTOMER INFORMATION"]
["CUSTOMER / BUSINESS OWNER / BUILDER / DEVELOPER"]
[null,null,null,null,null,null,null,null,null,null,null,null,null,null,null,null,null,null,null,null,null,null,null,null,null,null,null,null,null,null,null,null,null,null,null,null,null,null,null,"Check if project has Proposition 39 funding"]
["Company Name (as it appears on utility bill)"]
[]
["Company Mailing Address",null,null,null,null,null,null,null,null,null,null,null,null,null,null,null,null,null,null,null,null,null,null,null,null,null,null,"City",null,null,null,null,null,null,null,null,null,null,null,null,null,"State",null,null,null,"Zip Code"]
[]
["Contact Name",null,null,null,null,null,null,null,null,null,null,null,null,null,null,null,null,null,null,null,null,null,null,null,null,null,null,"Title"]
[]
["Contact Telephone Number",null,null,null,null,null,null,null,null,null,null,null,null,null,null,null,null,null,"Contact Fax Number",null,null,null,null,null,null,null,null,null,null,null,null,null,null,null,null,null,"Email "]
["Tax Identification Type (Select Only One)",null,null,null,null,null,null,null,null,null,null,null,null,null,null,null,null,null,null,null,null,null,null,null,null,null,null,null,"Tax Status (Select Only One)"]
[null,null,null,"Federal Tax ID",null,null,null,null,null,null,null,null,null,null,null,null,null,null,null,null,null,null,null,null,null,null,null,null,null,null,null,"Corporation",null,null,null,null,null,null,null,"Individual"]
[null,null,null,"SSN",null,null,null,null,null,null,null,null,null,null,null,null,null,null,null,null,null,null,null,null,null,null,null,null,null,null,null,"Non-Corp",null,null,null,null,null,null,null,"Exempt"]
[null,null,null,null,null,null,null,null,null,null,null,null,null,null,null,null,null,null,null,null,null,null,null,null,null,null,null,null,null,null,null,null,null,null,null,null,null,null,null,null,null,null,null,"Exempt Reason"]
[]
[]
["PROJECT SITE INFORMATION (SITE OF RETROFIT / PROJECT)"]
[]
["Project Name"]
[]
["Site Address",null,null,null,null,null,null,null,null,null,null,null,null,null,null,null,null,null,null,null,null,null,null,null,null,null,null,"City",null,null,null,null,null,null,null,null,null,null,null,null,null,"State",null,null,null,"Zip Code"]
[]
["Contact Name at Project Site",null,null,null,null,null,null,null,null,null,null,null,null,null,null,null,null,null,null,null,null,null,null,null,null,null,null,"Contact Phone Number",null,null,null,null,null,null,null,null,null,null,null,null,null,"Contact Email Address"]
[]
["Electric Account Number",null,null,null,null,null,null,null,null,null,null,null,"Gas Account Number",null,null,null,null,null,null,null,null,null,null,null,"Total Sq. Ft of Facility",null,null,null,null,null,null,null,null,null,"Years since built or last",null,null,null,null,null,null,null,null,null,"Total No. of Floors"]
[null,null,null,null,null,null,null,null,null,null,null,null,null,null,null,null,null,null,null,null,null,null,null,null,null,null,null,null,null,null,null,null,null,null,"major renovation"]
[]
["VENDOR/PROJECT SPONSOR (TRADE PROFESSIONAL / ENERGY SERVICE CO / SELF-SPONSOR) "]
[]
["Company/Business Name of Project Sponsor"]
[]
["Address",null,null,null,null,null,null,null,null,null,null,null,null,null,null,null,null,null,null,null,null,null,null,null,null,null,null,"City ",null,null,null,null,null,null,null,null,null,null,null,null,null,"State",null,null,null,"Zip Code"]
[]
["Contact Name",null,null,null,null,null,null,null,null,null,null,null,null,null,null,null,null,null,null,null,null,null,null,null,null,null,null,null,null,null,null,null,null,null,null,"Title"]
[]
["Contact Telephone Number",null,null,null,null,null,null,null,null,null,null,null,null,null,null,null,null,null,"Email"]
[]
["ON BILL FINANCE "]
[null,null,"Check if interested in 0% financing. * Please note: Projects utilizing On-Bill Financing option must submit OBF Application prior to purchase or installation."]
["*Rows 7, 9, 11, 13, 16, 17, 22, 24, 26, 28, 33, 36 & 40 are CONFIDENTIAL protected information being submitted to the CPUC pursuant to PUC §583 and all applicable protections. "]
["ENERGY EFFICIENCY MEASURES PROPOSED/UNDER CONSIDERATION"]
[1]
[2]
[3]
[4]
[5]
["Pre-Application Terms & Conditions:"]
["I authorize SDG&E and its employees, agents, contractors and representatives to contact the Project Sponsor listed below (if any) for the purpose of discussing any aspect of my project or any information submitted by me or my company on this application or any related project form.  My Project Sponsor is authorized to act on my behalf with respect to the project without further authorization from me or my company.   "]
[]
[]
[]
["I understand and acknowledge that completion of this form and/or acceptance of this form by SDG&E is a requirement of participation in the Energy Efficiency Business Incentive program, but is not a guarantee that my project qualifies for acceptance into the program, and is not a guarantee of any incentive in any amount.   "]
[]
[{"$f":"+A11","v":0},null,null,null,null,null,null,null,null,null,null,null,null,null,null,null,null,null,null,null,null,null,{"$f":"+AB11","v":0},null,null,null,null,null,null,null,null,null,null,null,null,null,null,{"$f":"+A7","v":0}]
["Customer (Print Name) ",null,null,null,null,null,null,null,null,null,null,null,null,null,null,null,null,null,null,null,null,null,null,"Title",null,null,null,null,null,null,null,null,null,null,null,null,null,null,"Company"]
[]
["Customer Signature",null,null,null,null,null,null,null,null,null,null,null,null,null,null,null,null,null,null,null,null,null,null,null,null,null,null,null,null,null,null,"Date"]
["The Project Sponsor agrees to follow all guidelines and procedures established in the 2018 Statewide Customized Offering Procedures Manual for Business Terms and Conditions. Eligibility for receipt of any incentive payments is contingent on meeting these requirements. "]
[{"$f":"+A37","v":0},null,null,null,null,null,null,null,null,null,null,null,null,null,null,null,null,null,null,null,null,null,{"$f":"+AJ37","v":0},null,null,null,null,null,null,null,null,null,null,null,null,null,null,{"$f":"+A33","v":0}]
["Project Sponsor (Print Name) ",null,null,null,null,null,null,null,null,null,null,null,null,null,null,null,null,null,null,null,null,null,null,"Title",null,null,null,null,null,null,null,null,null,null,null,null,null,null,"Company"]
[]
["Project Sponsor Signature",null,null,null,null,null,null,null,null,null,null,null,null,null,null,null,null,null,null,null,null,null,null,null,null,null,null,null,null,null,null,"Date"]
["** SELF-SPONSORING CUSTOMERS PLEASE ALSO SIGN HERE AS THE PROJECT SPONSOR **"]
["           NOTE: PURCHASE AND/OR INSTALLATION OF EQUIPMENT MAY NOT OCCUR "]
["UNTIL A NOTICE TO PROCEED IS ISSUED BY SDG&E."]
["PLEASE MAKE A COPY OF THIS DOCUMENT FOR YOUR FILES."]
["*Rows 59, 61, 64 & 66 are CONFIDENTIAL protected information being submitted to the CPUC pursuant to PUC §583 and all applicable protections. "]
[]
["* In accordance with California Public Utilities Code section 399.4(b), the customer (or their contractor) must provide SDG&E proof of permit closure before SDG&E will pay any rebate or incentive for the purchase or installation of central air-conditioning, heat pumps, or related fans. Please send corresponding documentation to BusinessEnergySavings@sdge.com."]

{"sheet":"Application (Forms 1 and 2)","index":2,"n_rows":106,"n_cols":46,"rows_kept":106,"cut":false,"hidden":false,"merged":[[105,0,107,52],[3,39,3,52],[3,0,3,35],[0,13,0,52],[1,0,1,52],[2,0,2,52],[4,0,4,52],[5,0,5,25],[5,27,5,39],[5,41,5,43],[5,45,5,52],[6,0,6,25],[6,27,6,39],[6,41,6,43],[12,3,12,9],[12,10,12,26],[12,31,12,35],[12,39,12,43],[13,3,13,9],[13,31,13,35],[13,43,13,51],[24,0,24,10],[24,12,24,22],[13,10,13,26],[7,27,7,52],[10,0,10,16],[10,18,10,34],[10,36,10,52],[7,0,7,25],[8,0,8,25],[8,27,8,52],[9,0,9,16],[9,18,9,34],[9,36,9,52],[26,0,26,19],[26,45,26,52],[31,0,31,52],[32,0,32,52],[33,0,33,52],[35,0,35,25],[16,0,16,54],[18,0,18,52],[20,0,20,25],[20,27,20,39],[20,41,20,43],[20,45,20,52],[17,0,17,52],[22,27,22,39],[22,41,22,52],[35,27,35,39],[35,41,35,43],[28,26,28,52],[35,45,35,52],[24,24,24,32],[24,34,24,42],[24,44,24,52],[22,0,22,25],[37,0,37,33],[37,35,37,51],[56,0,56,52],[57,0,57,30],[57,32,57,41],[57,43,57,52],[44,44,44,51],[60,0,60,25],[60,27,60,39],[60,41,60,43],[60,45,60,49],[44,3,44,9],[44,10,44,26],[44,31,44,35],[55,0,55,52],[39,0,39,16],[39,18,39,33],[43,3,43,9],[43,10,43,26],[43,31,43,35],[43,39,43,43],[61,0,61,25],[61,27,61,36],[61,38,61,52],[58,0,58,30],[58,32,58,41],[58,43,58,52],[59,0,59,25],[59,27,59,39],[59,41,59,43],[59,45,59,52],[84,0,85,52],[86,0,86,52],[87,0,87,49],[88,0,88,26],[88,31,88,40],[62,0,62,25],[62,27,62,36],[62,38,62,49],[64,3,64,10],[64,31,64,35],[64,39,64,43],[65,3,65,9],[65,10,65,26],[65,31,65,35],[65,39,65,42],[65,43,65,51],[66,3,66,9],[66,10,66,26],[69,0,69,52],[70,0,72,52],[74,0,75,52],[77,0,77,52],[78,0,79,52],[81,0,81,52],[104,0,104,52],[95,0,95,52],[100,0,100,52],[103,0,103,52],[101,0,101,52],[102,0,102,52],[76,0,76,52],[82,0,82,52],[83,0,83,50],[91,37,91,52],[98,0,98,26],[98,31,98,40],[99,0,99,26],[96,0,96,21],[89,0,89,26],[90,0,90,52],[91,0,91,21],[91,22,91,36],[96,37,96,52],[93,0,93,26],[93,31,93,40],[96,22,96,36],[94,0,94,26]]}
[]
["CUSTOMER INFORMATION"]
["CUSTOMER / BUSINESS OWNER / BUILDER / DEVELOPER"]
[{"$f":"+'Pre-Application Form'!A7:AI7","v":0},null,null,null,null,null,null,null,null,null,null,null,null,null,null,null,null,null,null,null,null,null,null,null,null,null,null,null,null,null,null,null,null,null,null,null,null,null,null," Check if project has Prop 39 funding"]
["Company Name (as it appears on utility bill)"]
[{"$f":"+'Pre-Application Form'!A9:Z9","v":0},null,null,null,null,null,null,null,null,null,null,null,null,null,null,null,null,null,null,null,null,null,null,null,null,null,null,{"$f":"+'Pre-Application Form'!AB9:AN9","v":0},null,null,null,null,null,null,null,null,null,null,null,null,null,{"$f":"+'Pre-Application Form'!AP9:AR9","v":0},null,null,null,{"$f":"+'Pre-Application Form'!AT9:BA9","v":0}]
["Company Mailing Address",null,null,null,null,null,null,null,null,null,null,null,null,null,null,null,null,null,null,null,null,null,null,null,null,null,null,"City",null,null,null,null,null,null,null,null,null,null,null,null,null,"State",null,null,null,"Zip Code"]
[{"$f":"+'Pre-Application Form'!A11:Z11","v":0},null,null,null,null,null,null,null,null,null,null,null,null,null,null,null,null,null,null,null,null,null,null,null,null,null,null,{"$f":"+'Pre-Application Form'!AB11:BA11","v":0}]
["Contact Name",null,null,null,null,null,null,null,null,null,null,null,null,null,null,null,null,null,null,null,null,null,null,null,null,null,null,"Title"]
[{"$f":"+'Pre-Application Form'!A13:Q13","v":0},null,null,null,null,null,null,null,null,null,null,null,null,null,null,null,null,null,{"$f":"+'Pre-Application Form'!S13:AI13","v":0},null,null,null,null,null,null,null,null,null,null,null,null,null,null,null,null,null,{"$f":"+'Pre-Application Form'!AK13:BA13","v":0}]
["Contact Telephone Number",null,null,null,null,null,null,null,null,null,null,null,null,null,null,null,null,null,"Contact Fax Number",null,null,null,null,null,null,null,null,null,null,null,null,null,null,null,null,null,"Email "]
["Tax Identification Type (Select Only One)",null,null,null,null,null,null,null,null,null,null,null,null,null,null,null,null,null,null,null,null,null,null,null,null,null,null,null,"Tax Status (Select Only One)"]
[null,null,null,"Federal Tax ID",null,null,null,null,null,null,{"$f":"+'Pre-Application Form'!K16:AA16","v":0},null,null,null,null,null,null,null,null,null,null,null,null,null,null,null,null,null,null,null,null,"Corporation",null,null,null,null,null,null,null,"Individual"]
[null,null,null,"SSN",null,null,null,null,null,null,{"$f":"+'Pre-Application Form'!K17:AA17","v":0},null,null,null,null,null,null,null,null,null,null,null,null,null,null,null,null,null,null,null,null,"Non-Corp",null,null,null,null,null,null,null,"Exempt",null,null,null,{"$f":"+'Pre-Application Form'!AR17:AZ17","v":0}]
[null,null,null,null,null,null,null,null,null,null,null,null,null,null,null,null,null,null,null,null,null,null,null,null,null,null,null,null,null,null,null,null,null,null,null,null,null,null,null,null,null,null,null,"Exempt Reason"]
[]
[]
["PROJECT SITE INFORMATION (SITE OF RETROFIT / PROJECT)"]
[{"$f":"+'Pre-Application Form'!A22:BA22","v":0}]
["Project Name (name should include company name, site id and project description)"]
[{"$f":"+'Pre-Application Form'!A24:Z24","v":0},null,null,null,null,null,null,null,null,null,null,null,null,null,null,null,null,null,null,null,null,null,null,null,null,null,null,{"$f":"+'Pre-Application Form'!AB24:AN24","v":0},null,null,null,null,null,null,null,null,null,null,null,null,null,{"$f":"+'Pre-Application Form'!AP9:AR9","v":0},null,null,null,{"$f":"+'Pre-Application Form'!AT24:BA24","v":0}]
["Site Address",null,null,null,null,null,null,null,null,null,null,null,null,null,null,null,null,null,null,null,null,null,null,null,null,null,null,"City",null,null,null,null,null,null,null,null,null,null,null,null,null,"State",null,null,null,"Zip Code"]
[{"$f":"+'Pre-Application Form'!A26:Z26","v":0},null,null,null,null,null,null,null,null,null,null,null,null,null,null,null,null,null,null,null,null,null,null,null,null,null,null,{"$f":"+'Pre-Application Form'!AB26:AN26","v":0},null,null,null,null,null,null,null,null,null,null,null,null,null,{"$f":"+'Pre-Application Form'!AP26:BA26","v":0}]
["Contact Name at Project Site",null,null,null,null,null,null,null,null,null,null,null,null,null,null,null,null,null,null,null,null,null,null,null,null,null,null,"Contact Phone Number",null,null,null,null,null,null,null,null,null,null,null,null,null,"Contact Email Address"]
[{"$f":"+'Pre-Application Form'!A28:K28","v":0},null,null,null,null,null,null,null,null,null,null,null,{"$f":"+'Pre-Application Form'!M28:W28","v":0},null,null,null,null,null,null,null,null,null,null,null,{"$f":"+'Pre-Application Form'!Y28:AG28","v":0},null,null,null,null,null,null,null,null,null,{"$f":"+'Pre-Application Form'!AI28:AQ28","v":0},null,null,null,null,null,null,null,null,null,{"$f":"+'Pre-Application Form'!AS28:BA28","v":0}]
["Electric Account Number",null,null,null,null,null,null,null,null,null,null,null,"Gas Account Number",null,null,null,null,null,null,null,null,null,null,null,"Total Sq. Ft of Facility",null,null,null,null,null,null,null,null,null,"Years since built or last",null,null,null,null,null,null,null,null,null,"Total No. of Floors"]
[null,null,null,null,null,null,null,null,null,null,null,null,null,null,null,null,null,null,null,null,null,null,null,null,null,null,null,null,null,null,null,null,null,null,"major renovation"]
[]
["HOW DID YOU FIND OUT ABOUT OUR PROGRAM?"]
[]
[]
["PROJECT SPONSOR (TRADE PROFESSIONAL / ENERGY SERVICE CO / SELF-SPONSOR) "]
["I have entered into a contract with the Project Sponsor indicated below for the installation of energy efficiency measures at the project site listed above. All correspondence will be sent directly to the Project Sponsor specified below. If you are self-sponsoring, correspondence will be directed to the customer."]
[{"$f":"+'Pre-Application Form'!A33:BA33","v":0}]
["Company/Business Name of Project Sponsor"]
[{"$f":"+'Pre-Application Form'!A35:Z35","v":0},null,null,null,null,null,null,null,null,null,null,null,null,null,null,null,null,null,null,null,null,null,null,null,null,null,null,{"$f":"+'Pre-Application Form'!AB35:AN35","v":0},null,null,null,null,null,null,null,null,null,null,null,null,null,{"$f":"+'Pre-Application Form'!AP35:AR35","v":0},null,null,null,{"$f":"+'Pre-Application Form'!AT35:BA35","v":0}]
["Address",null,null,null,null,null,null,null,null,null,null,null,null,null,null,null,null,null,null,null,null,null,null,null,null,null,null,"City ",null,null,null,null,null,null,null,null,null,null,null,null,null,"State",null,null,null,"Zip Code"]
[{"$f":"+'Pre-Application Form'!A37:AH37","v":0},null,null,null,null,null,null,null,null,null,null,null,null,null,null,null,null,null,null,null,null,null,null,null,null,null,null,null,null,null,null,null,null,null,null,{"$f":"+'Pre-Application Form'!AJ37:AZ37","v":0}]
["Contact Name",null,null,null,null,null,null,null,null,null,null,null,null,null,null,null,null,null,null,null,null,null,null,null,null,null,null,null,null,null,null,null,null,null,null,"Title"]
[{"$f":"+'Pre-Application Form'!A39:Q39","v":0},null,null,null,null,null,null,null,null,null,null,null,null,null,null,null,null,null,{"$f":"+'Pre-Application Form'!S39:AH39","v":0}]
["Contact Telephone Number",null,null,null,null,null,null,null,null,null,null,null,null,null,null,null,null,null,"Email"]
["Tax Identification Type (Select Only One)",null,null,null,null,null,null,null,null,null,null,null,null,null,null,null,null,null,null,null,null,null,null,null,null,null,null,null,"     Tax Status (Select Only One)"]
[]
[null,null,null,"Federal Tax ID",null,null,null,null,null,null,null,null,null,null,null,null,null,null,null,null,null,null,null,null,null,null,null,null,null,null,null,"Corporation",null,null,null,null,null,null,null,"Individual"]
[null,null,null,"SSN",null,null,null,null,null,null,null,null,null,null,null,null,null,null,null,null,null,null,null,null,null,null,null,null,null,null,null,"Non-Corp",null,null,null,null,null,null,null,"Exempt"]
[null,null,null,null,null,null,null,null,null,null,null,null,null,null,null,null,null,null,null,null,null,null,null,null,null,null,null,null,null,null,null,null,null,null,null,null,null,null,null,null,null,null,null,null,"Exempt Reason"]
[]
[null,null,"Check if utilizing OBF Option * Please note: Projects utilizing On-Bill Financing option must submit OBF Application prior to purchase or installation."]
[]
["INTERESTED IN OTHER ENERGY EFFICIENCY OPPORTUNITIES?"]
[null,null,"Not Interested",null,null,null,null,null,null,null,null,"Pump Efficiency",null,null,null,null,null,null,null,null,null,"HVAC Efficiency",null,null,null,null,null,null,null,null,"Energy Management Planning",null,null,null,null,null,null,null,null,null,null,null,null,null,"Engineering Training"]
[null,null,"Small-Medium Size Business (100kW or less)-No Cost/Low Cost Energy Efficiency Measures",null,null,null,null,null,null,null,null,null,null,null,null,null,null,null,null,null,null,null,null,null,null,null,null,null,null,null,null,null,null,null,null,null,null,"  Bill Savings Through Demand Response Program"]
[]
["*Rows 4, 6, 8, 10, 13, 14, 19, 21, 23, 25, 34, 37, 39, 41, 45 & 46 are CONFIDENTIAL protected information being submitted to the CPUC pursuant to PUC §583 and all applicable protections. "]
["*Rows 59, 61, 63, 67 & 68 are CONFIDENTIAL protected information being submitted to the CPUC pursuant to PUC §583 and all applicable protections. "]
["PAYMENT INFORMATION (To be completed only if incentive check is NOT payable to Customer. NOTE: this is not applicable to the comprehensiveness bonus)"]
["CHECK SHOULD BE MADE PAYABLE TO:"]
[]
["Payee: Business Name",null,null,null,null,null,null,null,null,null,null,null,null,null,null,null,null,null,null,null,null,null,null,null,null,null,null,null,null,null,null,null,"Telephone Number",null,null,null,null,null,null,null,null,null,null,"Fax Number"]
[]
["Mailing Address",null,null,null,null,null,null,null,null,null,null,null,null,null,null,null,null,null,null,null,null,null,null,null,null,null,null,"City",null,null,null,null,null,null,null,null,null,null,null,null,null,"State",null,null,null,"ZIP"]
[]
["Contact Name",null,null,null,null,null,null,null,null,null,null,null,null,null,null,null,null,null,null,null,null,null,null,null,null,null,null,"Title",null,null,null,null,null,null,null,null,null,null,"E-Mail"]
["Tax Identification Type (Select Only One)",null,null,null,null,null,null,null,null,null,null,null,null,null,null,null,null,null,null,null,null,null,null,null,null,null,null,null,"Tax Status (Select Only One)"]
[null,null,null,"Employer ID Number",null,null,null,null,null,null,null,null,null,null,null,null,null,null,null,null,null,null,null,null,null,null,null,null,null,null,null,"Corporation",null,null,null,null,null,null,null,"Individual"]
[null,null,null,"Federal Tax ID ",null,null,null,null,null,null,null,null,null,null,null,null,null,null,null,null,null,null,null,null,null,null,null,null,null,null,null,"Corporation",null,null,null,null,null,null,null,"Exempt"]
[null,null,null,"SSN",null,null,null,null,null,null,null,null,null,null,null,null,null,null,null,null,null,null,null,null,null,null,null,null,null,null,null,"Non-Corp"]
[]
[]
["Incentives and comprehensiveness bonuses are generally considered subsidies for tax purposes and could be taxable. You are urged to consult your tax advisor concerning the taxability of these incentives and/or bonuses. Incentives and/or bonuses greater than $600 will be reported to the IRS on Form 1099 unless you have checked corporation or exempt tax status. San Diego Gas & Electric Company (SDG&E) is not responsible for any taxes that may be imposed on your business as a result of your receipt of any incentive/bonus.  Payees must submit a completed W-9 form if you haven't already done so for our records.  Failure to do so could result in a delay of the incentive payment."]
["I understand that I am solely responsible for the selection, purchase and ownership of measures and services under this program. I understand and acknowledge that completion of this form and/or acceptance of this form by SDG&E is a requirement of participation in the Energy Efficiency Business Incentive program, but is not a guarantee that my project qualifies for acceptance into the program, and is not a guarantee of any incentive in any amount. I understand that SDG&E makes no representations or warranties regarding the qualifications of the Project Sponsor (Trade Professionals, when not the customer), and that I am solely responsible for the selection of the Project Sponsor to implement the project. I understand that the Project Sponsor is an independent Trade Professional and is not authorized to make any representation on behalf of SDG&E. I agree that SDG&E will have no role in resolving any disputes between me, the Project Sponsor and/or any other third parties.  I also understand that I can serve as my own Project Sponsor. "]
[]
[]
[]
["I have authority to contract, on behalf of the legal owners of the project site, for installation of the measures, or I have obtained the permission of the legal owner of the project site to install energy efficiency measures under my contract with the Project Sponsor.  I understand the program may require inspections and measurements of the performance of measures installed; therefore, I agree to provide access to the project site for those purposes to SDG&E and/or its agents or assigns.  "]
[]
["I understand that I am responsible for ensuring Title 24 code compliance of my project.  Should SDG&E determine that all of, or portions of a project do not comply with code requirements, SDG&E reserves the right to modify or cancel the incentive amount at any time."]
["A separate Agreement will be provided for signature by the Project Sponsor and Customer upon approval by SDG&E. "]
["As a qualified SDG&E customer, I certify that the indicated energy savings measures are for use in my business facility and not for resale. I agree to provide SDG&E with documents establishing paid proof of purchase for the measures applied for in this application package and product installations. I understand the incentive payments are based on the related energy benefits over the life of a product. I agree that if (1) I do not provide SDG&E with 100% of the related energy benefits specified in the application package for five (5) years from receipt of the incentive, or (2) I cease to be a customer of SDG&E during said time period, I shall refund a prorated amount of incentive dollars to SDG&E based on the actual period of time for which I provided the related energy benefits as a customer of SDG&E."]
[]
[]
["The total incentive payment shall not exceed the Customer Project Incentive Cap, as defined in the 2018 Statewide Customized Offering Procedures Manual for Business. This program has a limited budget. Applications are accepted on a first-come, first-served basis until program funds are no longer available, or December 2, 2018, whichever comes first. This program is funded by California utility customers and administrated by SDG&E under the auspices of the California Public Utilities Commission. This program may be modified or terminated without prior notice."]
["I UNDERSTAND THAT SDG&E MAKES NO REPRESENTATION OR WARRANTY, EXPRESS OR IMPLIED, INCLUDING WARRANTY OF MERCHANTABILITY OR FITNESS FOR ANY PARTICULAR PURPOSE, USE OR APPLICATION, AND ASSUMES NO LIABILITY, WITH RESPECT TO THE QUALITY, SAFETY, PERFORMANCE, RELIABILITY OR EFFICIENCY OF ANY MEASURE INSTALLED OR COMPONENTS THEREOF, AND THAT SDG&E EXPRESSLY DISCLAIMS ANY SUCH REPRESENTATION, WARRANTY OR LIABILITY.  I AGREE TO INDEMNIFY SAN DIEGO GAS & ELECTRIC, ITS AFFILIATES, SUBSIDIARIES, PARENT COMPANY, OFFICERS, DIRECTORS, AGENTS AND EMPLOYEES AGAINST ALL LOSS, DAMAGE, EXPENSE, FEES, COSTS AND LIABILITY ARISING FROM ANY MEASURES INSTALLED."]
["PAYMENT RELEASE AUTHORIZATION (Customer signs below if incentive is directed to a third party; NOTE: this is not applicable to the comprehensiveness bonus) "]
["As the customer of record, I understand the incentive payment will be made to the third party named above and that I will not be receiving the incentive check from SDG&E. I also understand that my release of the payment to the third party does not exempt me from the program requirements."]
[]
[]
["Customer Authorization: (Please Print Name)"]
[]
["Signature",null,null,null,null,null,null,null,null,null,null,null,null,null,null,null,null,null,null,null,null,null,null,null,null,null,null,null,null,null,null,"Date"]
["I have read and understand the program requirements and terms and conditions set forth in this application package and agree to abide by such requirements and terms and conditions. I certify that the information provided in this application package is true, correct and complete in all respects and that the project(s) for which I am requesting incentive(s) meet the program requirements set forth in this application package. I understand and agree that I must meet all eligibility criteria in order to receive a payment under this program. I agree that I have not received rebates, incentives or services for the same measures from other utilities, state or local programs funded by the Public Goods Charge.                                                                                                                                                                                                                                             RELEASE OF INFORMATION   If the CPUC requests review of your project, SDG&E will provide the CPUC with all of the information requested without further notification to you. If you refuse to allow the CPUC, its staff or its contractors and/or consultants to have access to your data, you will not be allowed to participate, and you will be ineligible to receive any program incentives. Please note that if you designated a project sponsor, a similar notification has been forwarded to them as well. In the event your project is selected for review, SDG&E will mark your data as confidential before submitting your files to the CPUC pursuant to PUC §583 and all applicable protections."]
[{"$f":"+A8","v":0},null,null,null,null,null,null,null,null,null,null,null,null,null,null,null,null,null,null,null,null,null,{"$f":"+AB8","v":0},null,null,null,null,null,null,null,null,null,null,null,null,null,null,{"$f":"+A4","v":0}]
["Customer (Print Name) ",null,null,null,null,null,null,null,null,null,null,null,null,null,null,null,null,null,null,null,null,null,null,"Title",null,null,null,null,null,null,null,null,null,null,null,null,null,null,"Company"]
[]
["Customer Signature",null,null,null,null,null,null,null,null,null,null,null,null,null,null,null,null,null,null,null,null,null,null,null,null,null,null,null,null,null,null,"Date"]
["The Project Sponsor agrees to follow all guidelines and procedures established in the 2018 Statewide Customized Offering Procedures Manual for Business Terms and Conditions. Eligibility for receipt of any incentive payments is contingent on meeting these requirements. "]
[{"$f":"+A38","v":0},null,null,null,null,null,null,null,null,null,null,null,null,null,null,null,null,null,null,null,null,null,{"$f":"+AJ38","v":0},null,null,null,null,null,null,null,null,null,null,null,null,null,null,{"$f":"+A34","v":0}]
["Project Sponsor (Print Name) ",null,null,null,null,null,null,null,null,null,null,null,null,null,null,null,null,null,null,null,null,null,null,"Title",null,null,null,null,null,null,null,null,null,null,null,null,null,null,"Company"]
[]
["Project Sponsor Signature",null,null,null,null,null,null,null,null,null,null,null,null,null,null,null,null,null,null,null,null,null,null,null,null,null,null,null,null,null,null,"Date"]
["** SELF-SPONSORING CUSTOMERS PLEASE ALSO SIGN HERE AS THE PROJECT SPONSOR **"]
["NOTE: THIS APPLICATION IS ONLY VALID 90 DAYS FROM THE DATE OF RECEIPT."]
["           PURCHASE AND/OR INSTALLATION OF EQUIPMENT MAY NOT OCCUR "]
["UNTIL A NOTICE TO PROCEED IS ISSUED BY SDG&E."]
["PLEASE MAKE A COPY OF THIS DOCUMENT FOR YOUR FILES."]
["* In accordance with California Public Utilities Code section 399.4(b), the customer (or their contractor) must provide SDG&E proof of permit closure before SDG&E will pay any rebate or incentive for the purchase or installation of central air-conditioning, heat pumps, or related fans. Please send corresponding documentation to BusinessEnergySavings@sdge.com."]

{"sheet":"Customized Measures (Form 3)","index":3,"n_rows":72,"n_cols":109,"rows_kept":72,"cut":false,"hidden":false,"merged":[[40,10,40,12],[40,41,40,53],[41,41,41,53],[52,0,54,81],[42,41,42,53],[43,41,43,53],[44,0,45,81],[46,0,46,81],[47,0,47,81],[48,0,48,19],[48,51,48,55],[36,64,36,72],[36,73,36,81],[38,10,38,12],[38,16,38,28],[38,41,38,53],[38,71,38,78],[36,20,36,23],[39,16,39,28],[39,41,39,53],[39,59,39,81],[36,24,36,27],[36,28,36,29],[36,30,36,33],[36,34,36,38],[36,39,36,48],[36,49,36,51],[36,52,36,56],[36,57,36,63],[36,0,36,3],[36,4,36,6],[36,7,36,8],[36,9,36,11],[36,12,36,13],[36,14,36,19],[35,0,35,3],[35,4,35,6],[35,7,35,8],[35,9,35,11],[35,12,35,13],[35,73,35,81],[35,14,35,19],[35,20,35,23],[35,24,35,27],[35,28,35,29],[35,30,35,33],[35,34,35,38],[35,39,35,48],[35,49,35,51],[35,52,35,56],[35,57,35,63],[35,64,35,72],[33,73,33,81],[34,0,34,3],[34,4,34,6],[34,7,34,8],[34,9,34,11],[34,12,34,13],[34,14,34,19],[34,20,34,23],[34,24,34,27],[34,28,34,29],[34,30,34,33],[34,34,34,38],[34,39,34,48],[34,49,34,51],[34,52,34,56],[34,57,34,63],[34,64,34,72],[34,73,34,81],[32,30,32,33],[32,34,32,38],[32,39,32,48],[32,49,32,51],[32,52,32,56],[32,57,32,63],[32,64,32,72],[32,73,32,81],[33,0,33,3],[33,4,33,6],[33,7,33,8],[33,9,33,11],[33,12,33,13],[33,14,33,19],[33,20,33,23],[33,24,33,27],[33,28,33,29],[33,30,33,33],[33,34,33,38],[33,39,33,48],[33,49,33,51],[33,52,33,56],[33,57,33,63],[33,64,33,72],[32,0,32,3],[32,4,32,6],[32,7,32,8],[32,9,32,11],[32,12,32,13],[32,14,32,19],[32,20,32,23],[32,24,32,27],[32,28,32,29],[27,0,27,48],[27,49,27,81],[28,0,31,3],[28,4,31,8],[28,9,31,13],[28,14,31,23],[28,24,31,29],[28,30,31,38],[28,39,31,48],[28,49,31,51],[28,52,31,56],[28,57,31,63],[28,64,31,72],[28,73,31,81],[21,1,21,19],[21,35,21,52],[21,53,21,61],[21,62,21,70],[21,71,21,78],[21,79,21,81],[22,1,22,19],[22,35,22,52],[22,53,22,61],[22,62,22,70],[22,71,22,78],[22,79,22,81],[19,1,19,19],[19,35,19,52],[19,53,19,61],[19,62,19,70],[19,71,19,78],[19,79,19,81],[20,1,20,19],[20,35,20,52],[20,53,20,61],[20,62,20,70],[20,71,20,78],[20,79,20,81],[5,96,6,96],[17,20,18,28],[17,29,18,34],[17,35,18,52],[17,53,18,61],[17,62,18,70],[0,23,0,49],[1,23,1,49],[2,6,2,37],[2,48,2,81],[3,14,3,28],[17,71,18,78],[17,79,18,81],[18,1,18,19],[17,0,17,19],[15,3,15,16]]}
[null,null,null,null,null,null,null,null,null,null,null,null,null,null,null,null,null,null,null,null,null,null,null,"San Diego Gas & Electric \n2018 Energy Efficiency Business Incentive Application"]
[null,null,null,null,null,null,null,null,null,null,null,null,null,null,null,null,null,null,null,null,null,null,null,"Customized Measures - FORM 3"]
[null,null,null,null,null,"Project Name",{"$f":"IF('Application (Forms 1 and 2)'!A19=\"\",\"\",'Application (Forms 1 and 2)'!A19)","v":0},null,null,null,null,null,null,null,null,null,null,null,null,null,null,null,null,null,null,null,null,null,null,null,null,null,null,null,null,null,null,null,null,null,null,null,null,null,null,null,null,"Project Sponsor",{"$f":"IF('Application (Forms 1 and 2)'!A34=0, \"\", 'Application (Forms 1 and 2)'!A34)","v":""}]
[null,null,null,null,null,null,null,null,null,null,null,null,null,"Estimated Installation Completion Date (MM/DD/YYYY):",null,null,null,null,null,null,null,null,null,null,null,null,null,null,null,null,null,null,null,null,null,null,null,null,null,null,null,null,null,null,null,"Customer Type:"]
[]
["Energy Efficiency Measure Information",null,null,null,null,null,null,null,null,null,null,null,null,null,null,null,null,null,null,null,null,null,null,null,null,null,null,null,null,null,null,null,null,null,null,null,null,null,null,null,null,null,null,null,null,null,null,null,null,null,null,null,null,null,null,null,null,null,null,null,null,null,null,null,null,null,null,null,null,null,null,null,null,null,null,null,null,null,null,null,null,null,null,null,null,null,null,null,null,null,null,null,null,null,null,null,"*partnership does not get kW","CR","SP"]
["If you need assistance completing this application, please contact your SDG&E account representative.",null,null,null,null,null,null,null,null,null,null,null,null,null,null,null,null,null,null,null,null,null,null,null,null,null,null,null,null,null,null,null,null,null,null,null,null,null,null,null,null,null,null,null,null,null,null,null,null,null,null,null,null,null,null,null,null,null,null,null,null,null,null,null,null,null,null,null,null,null,null,null,null,null,null,null,null,null,null,null,null,null,null,null,null,null,null,null,null,null,null,null,null,null,null,null,null,"cost cap","cost cap"]
["1. Indicate the Site Name and Account ID Number that will be affected by the measure. If the same measure is being installed at multiple sites, please create separate line items for each site.",null,null,null,null,null,null,null,null,null,null,null,null,null,null,null,null,null,null,null,null,null,null,null,null,null,null,null,null,null,null,null,null,null,null,null,null,null,null,null,null,null,null,null,null,null,null,null,null,null,null,null,null,null,null,null,null,null,null,null,null,null,null,null,null,null,null,null,null,null,null,null,null,null,null,null,null,null,null,null,null,null,null,null,null,null,null,null,null,null,null,null,null,null,null,"CR","SP"]
["2. Indicate the Technology Type by checking Basic Lighting, Targeted Lighting, Basic Non-Lighting, or Targeted Non-Lighting.",null,null,null,null,null,null,null,null,null,null,null,null,null,null,null,null,null,null,null,null,null,null,null,null,null,null,null,null,null,null,null,null,null,null,null,null,null,null,null,null,null,null,null,null,null,null,null,null,null,null,null,null,null,null,null,null,null,null,null,null,null,null,null,null,null,null,null,null,null,null,null,null,null,null,null,null,null,null,null,null,null,null,null,null,null,null,null,null,null,null,null,null,"Basic Lighting",1,0.12,0.24,0.5,0.5]
["3. Select the Measure Type. Choose ER if the measure is to be claimed as Early Retirement (e.g. if the equipment being replaced is still operational and capable of being operated for one additional year). Choose ROB if the measure is to be claimed as",null,null,null,null,null,null,null,null,null,null,null,null,null,null,null,null,null,null,null,null,null,null,null,null,null,null,null,null,null,null,null,null,null,null,null,null,null,null,null,null,null,null,null,null,null,null,null,null,null,null,null,null,null,null,null,null,null,null,null,null,null,null,null,null,null,null,null,null,null,null,null,null,null,null,null,null,null,null,null,null,null,null,null,null,null,null,null,null,null,null,null,null,"Basic Non-Lighting",2,0.12,0.24,0.5,0.8]
["    Replace on Burnout (e.g. if the equipment being replaced is not operational, or incapable of being operated for one additional year). Choose REA if the measure is to be claimed as Retrofit Add-On (e.g. if this is a controls measure or a mechanism added to existing",null,null,null,null,null,null,null,null,null,null,null,null,null,null,null,null,null,null,null,null,null,null,null,null,null,null,null,null,null,null,null,null,null,null,null,null,null,null,null,null,null,null,null,null,null,null,null,null,null,null,null,null,null,null,null,null,null,null,null,null,null,null,null,null,null,null,null,null,null,null,null,null,null,null,null,null,null,null,null,null,null,null,null,null,null,null,null,null,null,null,null,null,"Targeted Lighting",3,0.12,0.24,0.5,0.8]
[null,"equipment resulting in increased efficiency).",null,null,null,null,null,null,null,null,null,null,null,null,null,null,null,null,null,null,null,null,null,null,null,null,null,null,null,null,null,null,null,null,null,null,null,null,null,null,null,null,null,null,null,null,null,null,null,null,null,null,null,null,null,null,null,null,null,null,null,null,null,null,null,null,null,null,null,null,null,null,null,null,null,null,null,null,null,null,null,null,null,null,null,null,null,null,null,null,null,null,null,"Targeted Non-Lighting",4,0.12,0.24,0.5,0.8]
["    Choose NEW if the measure is to be claimed as New Load (e.g. Installation of new, high-efficiency equipment to meet expanded process needs or new production loads, that does not involve: Change in facility function/footprint, Movement of key equipment/",null,null,null,null,null,null,null,null,null,null,null,null,null,null,null,null,null,null,null,null,null,null,null,null,null,null,null,null,null,null,null,null,null,null,null,null,null,null,null,null,null,null,null,null,null,null,null,null,null,null,null,null,null,null,null,null,null,null,null,null,null,null,null,null,null,null,null,null,null,null,null,null,null,null,null,null,null,null,null,null,null,null,null,null,null,null,null,null,null,null,null,null,"Gas",5,1.25,1,0.5,0.8]
[null,"operations or Construction/removal of walls).",null,null,null,null,null,null,null,null,null,null,null,null,null,null,null,null,null,null,null,null,null,null,null,null,null,null,null,null,null,null,null,null,null,null,null,null,null,null,null,null,null,null,null,null,null,null,null,null,null,null,null,null,null,null,null,null,null,null,null,null,null,null,null,null,null,null,null,null,null,null,null,null,null,null,null,null,null,null,null,null,null,null,null,null,null,null,null,null,null,null,null,null,6]
[]
[null,null,null,"Enter data in blue cells"]
[]
["Calculated Measures",null,null,null,null,null,null,null,null,null,null,null,null,null,null,null,null,null,null,null,"Technology Type",null,null,null,null,null,null,null,null,"Measure Type",null,null,null,null,null,"Description of the Proposed Measure",null,null,null,null,null,null,null,null,null,null,null,null,null,null,null,null,null,"Full Measure Cost ($)*",null,null,null,null,null,null,null,null,"Incremental Meas. Cost ($)*",null,null,null,null,null,null,null,null,"Year Eqpt.\nInstalled",null,null,null,null,null,null,null,"Calculation Tool",null,null,null,null,null,null,null,null,null,null,null,null,null,"Measure Type","Measure Code"]
["#","Site Name (and Account ID# to be impacted by measure)",null,null,null,null,null,null,null,null,null,null,null,null,null,null,null,null,null,null,null,null,null,null,null,null,null,null,null,null,null,null,null,null,null,null,null,null,null,null,null,null,null,null,null,null,null,null,null,null,null,null,null,null,null,null,null,null,null,null,null,null,null,null,null,null,null,null,null,null,null,null,null,null,null,null,null,null,null,null,null,null,null,null,null,null,null,null,null,null,null,null,null,"ER",1]
[1,null,null,null,null,null,null,null,null,null,null,null,null,null,null,null,null,null,null,null,null,null,null,null,null,null,null,null,null,null,null,null,null,null,null,null,null,null,null,null,null,null,null,null,null,null,null,null,null,null,null,null,null,null,null,null,null,null,null,null,null,null,null,null,null,null,null,null,null,null,null,null,null,null,null,null,null,null,null,null,null,null,null,null,null,null,null,null,null,null,null,null,null,"ROB",2]
[2,null,null,null,null,null,null,null,null,null,null,null,null,null,null,null,null,null,null,null,null,null,null,null,null,null,null,null,null,null,null,null,null,null,null,null,null,null,null,null,null,null,null,null,null,null,null,null,null,null,null,null,null,null,null,null,null,null,null,null,null,null,null,null,null,null,null,null,null,null,null,null,null,null,null,null,null,null,null,null,null,null,null,null,null," ",null,null,null,null,null,null,null,"REA",3]
[3,null,null,null,null,null,null,null,null,null,null,null,null,null,null,null,null,null,null,null,null,null,null,null,null,null,null,null,null,null,null,null,null,null,null,null,null,null,null,null,null,null,null,null,null,null,null,null,null,null,null,null,null,null,null,null,null,null,null,null,null,null,null,null,null,null,null,null,null,null,null,null,null,null,null,null,null,null,null,null,null,null,null,null,null,null,null,null,null,null,null,null,null,"NEW",4]
[4]
[]
["Energy Efficiency Savings and Incentive Summary"]
["ENERGY/PERMANENT ON-PEAK DEMAND MEASURE DETAILS (Attach calculation sheets to this form and enter the energy savings and demand reduction parameters for Calculated Saving Measure below)"]
[]
["Energy Savings",null,null,null,null,null,null,null,null,null,null,null,null,null,null,null,null,null,null,null,null,null,null,null,null,null,null,null,null,null,null,null,null,null,null,null,null,null,null,null,null,null,null,null,null,null,null,null,null,"Permanent On-Peak Demand Reduction",null,null,null,null,null,null,null,null,null,null,null,null,null,null,null,null,null,null,null,null,null,null,null,null,null,null,null,null,null,null,null,null,null,null,null,null,null,null,null,null,null,null,null,null,"measure type is \"6\" to make sure no incentive rate is selected initially"]
["Calculated\nMeasure\nfrom # above",null,null,null,"Existing Equipment Baseline Usage",null,null,null,null,"Code/Standard Equip Baseline Usage\n(leave blank if unknown)",null,null,null,null,"Installed Usage",null,null,null,null,null,null,null,null,null,"Energy Savings",null,null,null,null,null,"Incentive\nRate",null,null,null,null,null,null,null,null,"Energy\nIncentive ($)",null,null,null,null,null,null,null,null,null,"Existing Equipment Baseline On-Peak Demand (kW)",null,null,"Code/Standard Equipment Baseline On-Peak Demand (kW)",null,null,null,null,"Installed\nOn-Peak\nDemand (kW)",null,null,null,null,null,null,"On-Peak\nDemand\nReduction (kW)",null,null,null,null,null,null,null,null,"Peak kW\nIncentive ($)",null,null,null,null,null,null,null,null,null,null,null,null,null,null,null,null,null,null,null,"Measure","Tech Type","incentive rate","measure cost cap","measure cost","gross incentive","cost adj","final incentive"]
[null,null,null,null,null,null,null,null,null,null,null,null,null,null,null,null,null,null,null,null,null,null,null,null,null,null,null,null,null,null,null,null,null,null,null,null,null,null,null,null,null,null,null,null,null,null,null,null,null,null,null,null,null,null,null,null,null,null,null,null,null,null,null,null,null,null,null,null,null,null,null,null,null,null,null,null,null,null,null,null,null,null,null,null,null,null,null,null,null,null,null,null,null,1,1,{"$f":"IF(CQ30=0,0,VLOOKUP(CQ30,$CQ$9:$CS$14,2))","v":0.12},{"$f":"IF(CQ30=0,0,VLOOKUP(CQ30,$CQ$9:$CU$13,4))","v":0.5},{"$f":"BC20","v":0},{"$f":"AN34+BV34","v":0},{"$f":"IF(CU30-CS30*CT30>0,CU30-CS30*CT30,0)","v":0},{"$f":"CU30-CV30","v":0}]
[null,null,null,null,null,null,null,null,null,null,null,null,null,null,null,null,null,null,null,null,null,null,null,null,null,null,null,null,null,null,null,null,null,null,null,null,null,null,null,null,null,null,null,null,null,null,null,null,null,null,null,null,null,null,null,null,null,null,null,null,null,null,null,null,null,null,null,null,null,null,null,null,null,null,null,null,null,null,null,null,null,null,null,null,null,null,null,null,null,null,null,null,null,2,1,{"$f":"IF(CQ31=0,0,VLOOKUP(CQ31,$CQ$9:$CS$14,2))","v":0.12},{"$f":"IF(CQ31=0,0,VLOOKUP(CQ31,$CQ$9:$CU$13,4))","v":0.5},{"$f":"BC21","v":0},{"$f":"AN35+BV35","v":0},{"$f":"IF(CU31-CS31*CT31>0,CU31-CS31*CT31,0)","v":0},{"$f":"CU31-CV31","v":0}]
[null,null,null,null,null,null,null,null,null,null,null,null,null,null,null,null,null,null,null,null,null,null,null,null,null,null,null,null,null,null,null,null,null,null,null,null,null,null,null,null,null,null,null,null,null,null,null,null,null,null,null,null,null,null,null,null,null,null,null,null,null,null,null,null,null,null,null,null,null,null,null,null,null,null,null,null,null,null,null,null,null,null,null,null,null,null,null,null,null,null,null,null,null,3,1,{"$f":"IF(CQ32=0,0,VLOOKUP(CQ32,$CQ$9:$CS$14,2))","v":0.12},{"$f":"IF(CQ32=0,0,VLOOKUP(CQ32,$CQ$9:$CU$13,4))","v":0.5},{"$f":"BC22","v":0},{"$f":"AN36+BV36","v":0},{"$f":"IF(CU32-CS32*CT32>0,CU32-CS32*CT32,0)","v":0},{"$f":"CU32-CV32","v":0}]
[null,null,null,null,"kWh/yr",null,null,"therm/yr",null,"kWh/yr",null,null,"therm/yr",null,"kWh/yr",null,null,null,null,null,"therm/yr",null,null,null,"kWh/yr",null,null,null,"therm/yr",null,"$/kWh",null,null,null,"$/therm",null,null,null,null,null,null,null,null,null,null,null,null,null,null,null,null,null,null,null,null,null,null,null,null,null,null,null,null,null,null,null,null,null,null,null,null,null,null,null,null,null,null,null,null,null,null,null,null,null,"Final Incentive",null,null,null,null,null,null,null,null,4,1,{"$f":"IF(CQ33=0,0,VLOOKUP(CQ33,$CQ$9:$CS$14,2))","v":0.12},{"$f":"IF(CQ33=0,0,VLOOKUP(CQ33,$CQ$9:$CU$13,4))","v":0.5},{"$f":"BC23","v":0},{"$f":"AN37+BV37","v":0},{"$f":"IF(CU33-CS33*CT33>0,CU33-CS33*CT33,0)","v":0},{"$f":"CU33-CV33","v":0}]
["1",null,null,null,null,null,null,null,null,null,null,null,null,null,null,null,null,null,null,null,null,null,null,null,{"$f":"IF(OR(CQ46=1,CQ46=3),E34-O34,IF(OR(CQ46=2,CQ46=4,CQ46=5),J34-O34,0))","v":0},null,null,null,{"$f":"IF(OR(CQ46=1,CQ46=3),H34-U34,IF(OR(CQ46=2,CQ46=4,CQ46=5),M34-U34,0))","v":0},null,{"$f":"CR30","v":0.12},null,null,null,{"$f":"IF(AND(H34=\"\",M34=\"\",U34=\"\"),0,1.25)","v":0},null,null,null,null,{"$f":"Y34*AE34+AC34*AI34","v":0},null,null,null,null,null,null,null,null,null,null,null,null,null,null,null,null,null,null,null,null,null,null,null,null,{"$f":"IF(OR(CQ46=1,CQ46=3),AX34-BF34,IF(OR(CQ46=2,CQ46=4,CQ46=5),BA34-BF34,0))","v":0},null,null,null,null,null,null,null,null,{"$f":"BM34*150","v":0},null,null,null,null,null,null,null,null,null,{"$f":"CQ46","v":1},{"$f":"IF(BB20+BK20<=0,0,AN34+BV34)","v":0},null,null,null,null,null,null,null,null,null,null,null,null,{"$f":"SUM(CT30:CT33)","v":0},{"$f":"SUM(CU30:CU33)","v":0},{"$f":"SUM(CV30:CV33)","v":0},{"$f":"SUM(CW30:CW33)","v":0}]
[2,null,null,null,null,null,null,null,null,null,null,null,null,null,null,null,null,null,null,null,null,null,null,null,{"$f":"IF(OR(CQ48=1,CQ48=3),E35-O35,IF(OR(CQ48=2,CQ48=4,CQ48=5),J35-O35,0))","v":0},null,null,null,{"$f":"IF(OR(CQ48=1,CQ48=3),H35-U35,IF(OR(CQ48=2,CQ48=4,CQ48=5),M35-U35,0))","v":0},null,{"$f":"CR31","v":0.12},null,null,null,{"$f":"IF(AND(H35=\"\",M35=\"\",U35=\"\"),0,1.25)","v":0},null,null,null,null,{"$f":"Y35*AE35+AC35*AI35","v":0},null,null,null,null,null,null,null,null,null,null,null,null,null,null,null,null,null,null,null,null,null,null,null,null,{"$f":"IF(OR(CQ48=1,CQ48=3),AX35-BF35,IF(OR(CQ48=2,CQ48=4,CQ48=5),BA35-BF35,0))","v":0},null,null,null,null,null,null,null,null,{"$f":"BM35*150","v":0},null,null,null,null,null,null,null,null,null,{"$f":"CQ48","v":1},{"$f":"IF(BB21+BK21<=0,0,AN35+BV35)","v":0}]
[3,null,null,null,null,null,null,null,null,null,null,null,null,null,null,null,null,null,null,null,null,null,null,null,{"$f":"IF(OR(CQ49=1,CQ49=3),E36-O36,IF(OR(CQ49=2,CQ49=4,CQ49=5),J36-O36,0))","v":0},null,null,null,{"$f":"IF(OR(CQ49=1,CQ49=3),H36-U36,IF(OR(CQ49=2,CQ49=4,CQ49=5),M36-U36,0))","v":0},null,{"$f":"CR32","v":0.12},null,null,null,0,null,null,null,null,0,null,null,null,null,null,null,null,null,null,null,null,null,null,null,null,null,null,null,null,null,null,null,null,null,{"$f":"IF(OR(CQ49=1,CQ49=3),AX36-BF36,IF(OR(CQ49=2,CQ49=4,CQ49=5),BA36-BF36,0))","v":0},null,null,null,null,null,null,null,null,{"$f":"BM36*150","v":0},null,null,null,null,null,null,null,null,null,{"$f":"CQ49","v":1},0]
[4,null,null,null,null,null,null,null,null,null,null,null,null,null,null,null,null,null,null,null,null,null,null,null,{"$f":"IF(OR(CQ50=1,CQ50=3),E37-O37,IF(OR(CQ50=2,CQ50=4,CQ50=5),J37-O37,0))","v":0},null,null,null,{"$f":"IF(OR(CQ50=1,CQ50=3),H37-U37,IF(OR(CQ50=2,CQ50=4,CQ50=5),M37-U37,0))","v":0},null,{"$f":"CR33","v":0.12},null,null,null,0,null,null,null,null,0,null,null,null,null,null,null,null,null,null,null,null,null,null,null,null,null,null,null,null,null,null,null,null,null,{"$f":"IF(OR(CQ50=1,CQ50=3),AX37-BF37,IF(OR(CQ50=2,CQ50=4,CQ50=5),BA37-BF37,0))","v":0},null,null,null,null,null,null,null,null,{"$f":"BM37*150","v":0},null,null,null,null,null,null,null,null,null,{"$f":"CQ50","v":1},0]
[]
["Estimated Energy Savings Totals",null,null,null,null,null,null,null,null,null,{"$f":"CS40","v":0},null,null,"kWh",null,null,null,null,null,null,null,null,null,null,null,null,null,null,null,null,null,null,null,null,null,null,null,null,null,null,"Total Measure Cost ($)",{"$f":"SUM(BB20:BJ23)","v":0},null,null,null,null,null,null,null,null,null,null,null,null,null,null,null,null,null,null,null,null,null,null,null,null,null,null,null,null,"On-Peak Demand Reduction",{"$f":"SUM(BM34:BU37)","v":0},null,null,null,null,null,null,null,"kW"]
[null,null,null,null,null,null,null,null,null,null,null,null,null,null,null,null,null,null,null,null,null,null,null,null,null,null,null,null,null,null,null,null,null,null,null,null,null,null,null,null,"Total Incremental Cost ($)",{"$f":"SUM(BK20:BS23)","v":0},null,null,null,null,null,null,null,null,null,null,null,null,null,null,null,null,null,"CUSTOMIZED RETROFIT INCENTIVE RATES",null,null,null,null,null,null,null,null,null,null,null,null,null,null,null,null,null,null,null,null,null,null,null,null,null,null,null,null,null,null,null,null,null,"Gas Savings  ",{"$f":"SUM(AC34:AD37)","v":0},"Electric",{"$f":"SUM(Y34:AB37)","v":0}]
[null,null,null,null,null,null,null,null,null,null,{"$f":"CQ40","v":0},null,null,"therms",null,null,null,null,null,null,null,null,null,null,null,null,null,null,null,null,null,null,null,null,null,null,null,null,null,null,"Estimated Subtotal Incentive ($)",{"$f":"SUM(AN34:AW37)+SUM(BV34:CD37)","v":0},null,null,null,null,null,null,null,null,null,null,null,null,null,null,null,null,null,"Basic Lighting",null,null,null,null,null,"$0.12/kWh",null,null,null,null,null,"Basic Non-Lighting",null,null,null,null,null,null,null,null,null,"$0.12/kWh",null,null,null,null,null,null,null,null,null,null,null,{"$f":"IF((AP39*0.5)>SUM(AO34:AW37)+SUM(BV34:CD37),0,(SUM(AO34:AW37)+SUM(BV34:CB37)-(AP39*0.5)))","v":0}]
[null,null,null,null,null,null,null,null,null,null,null,null,null,null,null,null,null,null,null,null,null,null,null,null,null,null,null,null,null,null,null,null,null,null,null,null,null,null,null,null,"Retrofit Cost Adjustment ($)",{"$f":"DE51","v":0},null,null,null,null,null,null,null,null,null,null,null,null,null,null,null,null,null,"Targeted Lighting",null,null,null,null,null,"$0.12/kWh",null,null,null,null,null,"Targeted Non-Lighting",null,null,null,null,null,null,null,null,null,"$0.12/kWh"]
[null,null,null,null,null,null,null,null,null,null,null,null,null,null,null,null,null,null,null,null,null,null,null,null,null,null,null,null,null,null,null,null,null,null,null,null,null,null,null,null,"Bonus Incentive ($)",{"$f":"IF(AND(CT48,CT49),CU48+CU49,IF(CT48,CU48,IF(CT49, CU49,\"\")))","v":""},null,null,null,null,null,null,null,null,null,null,null,null,null,null,null,null,null,"Natural Gas",null,null,null,null,null,"$1.25/therm",null,null,null,null,null,null,null,"All",null,null,null,null,null,null,null,"$150.00/peak kW",null,"v1.3 6/21/18"]
[null,null,null,null,null,null,null,null,null,null,null,null,null,null,null,null,null,null,null,null,null,null,null,null,null,null,null,null,null,null,null,null,null,null,null,null,null,null,null,null,"Estimated Total Incentive ($)",{"$f":"IF(AP43=\"\",SUM(CG34:CG37),SUM(CG34:CG37)+AP43)","v":0}]
["*The total incentive payment shall not exceed the Customer Project Incentive Cap, as defined in the Statewide Customized Retrofit Manual. This program has a limited budget. Applications are accepted on a first-come, first-served basis until program funds are no longer available, or December 02, 2018, whichever comes first. This program is funded by California utility customers and administrated by SDG&E under the auspices of the California Public Utilities Commission. This program may be modified or terminated without prior notice.",null,null,null,null,null,null,null,null,null,null,null,null,null,null,null,null,null,null,null,null,null,null,null,null,null,null,null,null,null,null,null,null,null,null,null,null,null,null,null,null,null,null,null,null,null,null,null,null,null,null,null,null,null,null,null,null,null,null,null,null,null,null,null,null,null,null,null,null,null,null,null,null,null,null,null,null,null,null,null,null,null,null,null,null,null,null,null,null,null,null,null,null,"Measure","Meas Type",null,"Bonus","Bonus Type","Bonus incentive",null,null,null,null,null,null,"Gross Incentive","Incremental MC","Total MC","MC Adjustment"]
[null,null,null,null,null,null,null,null,null,null,null,null,null,null,null,null,null,null,null,null,null,null,null,null,null,null,null,null,null,null,null,null,null,null,null,null,null,null,null,null,null,null,null,null,null,null,null,null,null,null,null,null,null,null,null,null,null,null,null,null,null,null,null,null,null,null,null,null,null,null,null,null,null,null,null,null,null,null,null,null,null,null,null,null,null,null,null,null,null,null,null,null,null,null,1,null,null,null,null,null,null,null,null,null,"ROB",{"$f":"SUMIF(CQ46:CQ50,\"=2\",AN34:AW37) + SUMIF(CQ46:CQ50,\"=2\",BV34:CD37)","v":0},{"$f":"SUMIF(CQ46:CQ50,\"=2\",BK20:BS23)","v":0},{"$f":"SUMIF(CQ46:CQ50,\"=2\",BB20:BJ23)","v":0},{"$f":"DB46 - MIN(DB46, DC46)","v":0}]
["NOTE: PURCHASE AND/OR INSTALLATION CANNOT OCCUR UNTIL A NOTICE TO PROCEED IS RECEIVED FROM SDG&E"]
["\"SDG&E\" refers to San Diego Gas and Electric Company, a subsidiary of SDG&E Corporation. ©2018 San Diego Gas and Electric Company. All rights reserved. These offerings are funded by California utility customers and administered by SDG&E under the auspices of the California Public Utilities Commission.\nSDG&E prints its materials with soy based inks on recycled paper.",null,null,null,null,null,null,null,null,null,null,null,null,null,null,null,null,null,null,null,null,null,null,null,null,null,null,null,null,null,null,null,null,null,null,null,null,null,null,null,null,null,null,null,null,null,null,null,null,null,null,null,null,null,null,null,null,null,null,null,null,null,null,null,null,null,null,null,null,null,null,null,null,null,null,null,null,null,null,null,null,null,null,null,null,null,null,null,null,null,null,null,null,null,1,null,"Comprehensiveness Bonus",false,{"$f":"IF(CT48,MIN(0.2*((SUM(BV34:CD37)+SUM(AN34:AW37))),25000),\"\")","v":""},null,null,null,null,null,"RET",{"$f":"SUMIF(CQ46:CQ50,\"=1\",AN34:AW37) + SUMIF(CQ46:CQ50,\"=1\",BV34:CD37)","v":0},{"$f":"SUMIF(CQ46:CQ50,\"=1\",BK20:BS23)","v":0},{"$f":"SUMIF(CQ46:CQ50,\"=1\",BB20:BJ23)","v":0},{"$f":"DB48 - MIN(DB48, DD48/2)","v":0}]
["2018-06-25",null,null,null,null,null,null,null,null,null,null,null,null,null,null,null,null,null,null,null,null,null,null,null,null,null,null,null,null,null,null,null,null,null,null,null,null,null,null,null,null,null,null,null,null,null,null,null,null,null,null,null,null,null,null,null,null,null,null,null,null,null,null,null,null,null,null,null,null,null,null,null,null,null,null,null,null,null,null,null,null,null,null,null,null,null,null,null,null,null,null,null,null,null,1,null," Targeted Substation Bonus",false,{"$f":"IF(CT49,150*SUM(BM34:BU37),\"\")","v":""},null,null,null,null,null,"REA",{"$f":"SUMIF(CQ46:CQ50,\"=3\",AN34:AW37) + SUMIF(CQ46:CQ50,\"=3\",BV34:CD37)","v":0},{"$f":"SUMIF(CQ46:CQ50,\"=3\",BK20:BS23)","v":0},{"$f":"SUMIF(CQ46:CQ50,\"=3\",BB20:BJ23)","v":0},{"$f":"DB49 - MIN(DB49, DD49/2)","v":0}]
[null,null,null,null,null,null,null,null,null,null,null,null,null,null,null,null,null,null,null,null,null,null,null,null,null,null,null,null,null,null,null,null,null,null,null,null,null,null,null,null,null,null,null,null,null,null,null,null,null,null,null,null,null,null,null,null,null,null,null,null,null,null,null,null,null,null,null,null,null,null,null,null,null,null,null,null,null,null,null,null,null,null,null,null,null,null,null,null,null,null,null,null,null,null,1,null,null,null,null,null,null,null,null,null,"NEW",{"$f":"SUMIF(CQ46:CQ50,\"=4\",AN34:AW37) + SUMIF(CQ46:CQ50,\"=4\",BV34:CD37)","v":0},{"$f":"SUMIF(CQ46:CQ50,\"=4\",BK20:BS23)","v":0},{"$f":"SUMIF(CQ46:CQ50,\"=4\",BB20:BJ23)","v":0},{"$f":"DB50 - MIN(DB50, DC50)","v":0}]
[null,null,null,null,null,null,null,null,null,null,null,null,null,null,null,null,null,null,null,null,null,null,null,null,null,null,null,null,null,null,null,null,null,null,null,null,null,null,null,null,null,null,null,null,null,null,null,null,null,null,null,null,null,null,null,null,null,null,null,null,null,null,null,null,null,null,null,null,null,null,null,null,null,null,null,null,null,null,null,null,null,null,null,null,null,null,null,null,null,null,null,null,null,null,null,null,null,null,null,null,null,null,null,null,"Totals",{"$f":"SUM(DB46:DB50)","v":0},{"$f":"DC46 + DC50","v":0},{"$f":"(DD48 + DD49) * 0.5","v":0},{"$f":"MAX(DB51 - (DC51 + DD51), 0)","v":0}]
["*Rows 3, 20, 21, 22, 23 are CONFIDENTIAL protected information being submitted to the CPUC pursuant to PUC §583 and all applicable protections."]
["* In accordance with California Public Utilities Code section 399.4(b), the customer (or their contractor) must provide SDG&E proof of permit closure before SDG&E will pay any rebate or incentive for the purchase or installation of central air-conditioning, heat pumps, or related fans. Please send corresponding documentation to BusinessEnergySavings@sdge.com."]
[]
[null,null,null,null,null,null,null,null,null,null,null,null,null,null,null,null,null,null,null,null,null,null,null,null,null,null,null,null,null,null,null,null,null,null,null,null,null,null,null,null,null,null,null,null,null,null,null,null,null,null,null,null,null,null,null,null,null,null,null,null,null,null,null,null,null,null,null,null,null,null,null,null,null,null,null,null,null,null,null,null,null,null,null,null,null,null,null,null,null,null,null,null,null,"Calculation Tools"]
[]
[null,null,null,null,null,null,null,null,null,null,null,null,null,null,null,null,null,null,null,null,null,null,null,null,null,null,null,null,null,null,null,null,null,null,null,null,null,null,null,null,null,null,null,null,null,null,null,null,null,null,null,null,null,null,null,null,null,null,null,null,null,null,null,null,null,null,null,null,null,null,null,null,null,null,null,null,null,null,null,null,null,null,null,null,null,null,null,null,null,null,null,null,null,"READI-2011 (database for multiple DEER measures)"]
[null,null,null,null,null,null,null,null,null,null,null,null,null,null,null,null,null,null,null,null,null,null,null,null,null,null,null,null,null,null,null,null,null,null,null,null,null,null,null,null,null,null,null,null,null,null,null,null,null,null,null,null,null,null,null,null,null,null,null,null,null,null,null,null,null,null,null,null,null,null,null,null,null,null,null,null,null,null,null,null,null,null,null,null,null,null,null,null,null,null,null,null,null,"CCT2013 (multiple measures)"]
[null,null,null,null,null,null,null,null,null,null,null,null,null,null,null,null,null,null,null,null,null,null,null,null,null,null,null,null,null,null,null,null,null,null,null,null,null,null,null,null,null,null,null,null,null,null,null,null,null,null,null,null,null,null,null,null,null,null,null,null,null,null,null,null,null,null,null,null,null,null,null,null,null,null,null,null,null,null,null,null,null,null,null,null,null,null,null,null,null,null,null,null,null,"eQuest (whole building/facility modeling)"]
[null,null,null,null,null,null,null,null,null,null,null,null,null,null,null,null,null,null,null,null,null,null,null,null,null,null,null,null,null,null,null,null,null,null,null,null,null,null,null,null,null,null,null,null,null,null,null,null,null,null,null,null,null,null,null,null,null,null,null,null,null,null,null,null,null,null,null,null,null,null,null,null,null,null,null,null,null,null,null,null,null,null,null,null,null,null,null,null,null,null,null,null,null,"Energy Pro (whole building/facility modeling)"]
[null,null,null,null,null,null,null,null,null,null,null,null,null,null,null,null,null,null,null,null,null,null,null,null,null,null,null,null,null,null,null,null,null,null,null,null,null,null,null,null,null,null,null,null,null,null,null,null,null,null,null,null,null,null,null,null,null,null,null,null,null,null,null,null,null,null,null,null,null,null,null,null,null,null,null,null,null,null,null,null,null,null,null,null,null,null,null,null,null,null,null,null,null,"MotorMaster+ (motors)"]
[null,null,null,null,null,null,null,null,null,null,null,null,null,null,null,null,null,null,null,null,null,null,null,null,null,null,null,null,null,null,null,null,null,null,null,null,null,null,null,null,null,null,null,null,null,null,null,null,null,null,null,null,null,null,null,null,null,null,null,null,null,null,null,null,null,null,null,null,null,null,null,null,null,null,null,null,null,null,null,null,null,null,null,null,null,null,null,null,null,null,null,null,null,"AirMaster+ (compressed air)"]
[null,null,null,null,null,null,null,null,null,null,null,null,null,null,null,null,null,null,null,null,null,null,null,null,null,null,null,null,null,null,null,null,null,null,null,null,null,null,null,null,null,null,null,null,null,null,null,null,null,null,null,null,null,null,null,null,null,null,null,null,null,null,null,null,null,null,null,null,null,null,null,null,null,null,null,null,null,null,null,null,null,null,null,null,null,null,null,null,null,null,null,null,null,"SimCalc2 (whole building/facility modeling)"]
[null,null,null,null,null,null,null,null,null,null,null,null,null,null,null,null,null,null,null,null,null,null,null,null,null,null,null,null,null,null,null,null,null,null,null,null,null,null,null,null,null,null,null,null,null,null,null,null,null,null,null,null,null,null,null,null,null,null,null,null,null,null,null,null,null,null,null,null,null,null,null,null,null,null,null,null,null,null,null,null,null,null,null,null,null,null,null,null,null,null,null,null,null,"BOA (multiple measures)"]
[null,null,null,null,null,null,null,null,null,null,null,null,null,null,null,null,null,null,null,null,null,null,null,null,null,null,null,null,null,null,null,null,null,null,null,null,null,null,null,null,null,null,null,null,null,null,null,null,null,null,null,null,null,null,null,null,null,null,null,null,null,null,null,null,null,null,null,null,null,null,null,null,null,null,null,null,null,null,null,null,null,null,null,null,null,null,null,null,null,null,null,null,null,"C-BOA (customized calculation on a few measures)"]
[null,null,null,null,null,null,null,null,null,null,null,null,null,null,null,null,null,null,null,null,null,null,null,null,null,null,null,null,null,null,null,null,null,null,null,null,null,null,null,null,null,null,null,null,null,null,null,null,null,null,null,null,null,null,null,null,null,null,null,null,null,null,null,null,null,null,null,null,null,null,null,null,null,null,null,null,null,null,null,null,null,null,null,null,null,null,null,null,null,null,null,null,null,"PSAT (pumping)"]
[null,null,null,null,null,null,null,null,null,null,null,null,null,null,null,null,null,null,null,null,null,null,null,null,null,null,null,null,null,null,null,null,null,null,null,null,null,null,null,null,null,null,null,null,null,null,null,null,null,null,null,null,null,null,null,null,null,null,null,null,null,null,null,null,null,null,null,null,null,null,null,null,null,null,null,null,null,null,null,null,null,null,null,null,null,null,null,null,null,null,null,null,null,"FSAT (fans)"]
[null,null,null,null,null,null,null,null,null,null,null,null,null,null,null,null,null,null,null,null,null,null,null,null,null,null,null,null,null,null,null,null,null,null,null,null,null,null,null,null,null,null,null,null,null,null,null,null,null,null,null,null,null,null,null,null,null,null,null,null,null,null,null,null,null,null,null,null,null,null,null,null,null,null,null,null,null,null,null,null,null,null,null,null,null,null,null,null,null,null,null,null,null,"CWSAT (chilled water)"]
[null,null,null,null,null,null,null,null,null,null,null,null,null,null,null,null,null,null,null,null,null,null,null,null,null,null,null,null,null,null,null,null,null,null,null,null,null,null,null,null,null,null,null,null,null,null,null,null,null,null,null,null,null,null,null,null,null,null,null,null,null,null,null,null,null,null,null,null,null,null,null,null,null,null,null,null,null,null,null,null,null,null,null,null,null,null,null,null,null,null,null,null,null,"3EPlus (pipe insulation)"]
[null,null,null,null,null,null,null,null,null,null,null,null,null,null,null,null,null,null,null,null,null,null,null,null,null,null,null,null,null,null,null,null,null,null,null,null,null,null,null,null,null,null,null,null,null,null,null,null,null,null,null,null,null,null,null,null,null,null,null,null,null,null,null,null,null,null,null,null,null,null,null,null,null,null,null,null,null,null,null,null,null,null,null,null,null,null,null,null,null,null,null,null,null,"IES Spreadsheet (SDG&E tool for lighting)"]
[null,null,null,null,null,null,null,null,null,null,null,null,null,null,null,null,null,null,null,null,null,null,null,null,null,null,null,null,null,null,null,null,null,null,null,null,null,null,null,null,null,null,null,null,null,null,null,null,null,null,null,null,null,null,null,null,null,null,null,null,null,null,null,null,null,null,null,null,null,null,null,null,null,null,null,null,null,null,null,null,null,null,null,null,null,null,null,null,null,null,null,null,null,"Custom Spreadsheet (Excel)"]
[null,null,null,null,null,null,null,null,null,null,null,null,null,null,null,null,null,null,null,null,null,null,null,null,null,null,null,null,null,null,null,null,null,null,null,null,null,null,null,null,null,null,null,null,null,null,null,null,null,null,null,null,null,null,null,null,null,null,null,null,null,null,null,null,null,null,null,null,null,null,null,null,null,null,null,null,null,null,null,null,null,null,null,null,null,null,null,null,null,null,null,null,null,"Other"]